bitfinex/quotes_ETHUSD_20240824
["timestamp","ask_amount","ask_price","bid_price","bid_amount"]
[1724459163928,3.62163,2761.2,2760.5,4.17252]
[1724459164122,4.42441681,2761.2,2760.5,4.17252]
[1724459164324,3.62174,2761.1,2760.5,4.17252]
[1724459165539,3.62156,2761.3,2760.6,3.62238]
[1724459165740,3.62156,2761.3,2760.6,7.24469]
[1724459165957,3.62163,2761.2,2760.6,3.62231]
[1724459167064,3.62156,2761.3,2760.6,3.62231]
[1724459167240,3.62135,2761.4,2760.7,0.55]
[1724459167438,3.62163,2761.2,2760.7,0.55]
[1724459168249,3.62163,2761.2,2760.4,3.62261]
[1724459168453,3.62187,2761.0,2760.4,7.24518]
[1724459168771,3.62187,2761.0,2760.5,0.55]
[1724459169267,3.62187,2761.0,2760.5,4.1725]
[1724459169455,3.62187,2761.0,2760.5,0.55]
[1724459171943,3.62201,2760.9,2760.5,0.55]
[1724459172272,5.98617,2761.0,2760.5,0.55]
[1724459173594,3.62227,2760.7,2760.2,5.4756]
[1724459173746,3.62227,2760.7,2760.3,0.55]
[1724459174895,7.24412,2760.9,2760.3,0.55]
[1724459175269,3.62215,2760.8,2760.3,0.55]
[1724459175467,3.62201,2760.9,2760.3,4.17268]
[1724459175864,3.62201,2760.9,2760.3,0.55]
[1724459176071,3.62217,2760.8,2760.3,0.55]
[1724459178054,3.62203,2760.9,2760.3,4.1727]
[1724459178296,3.24419151,2761.3,2760.4,3.62253]
[1724459178297,3.62187,2761.1,2760.4,3.62253]
[1724459178601,3.62187,2761.1,2760.5,4.17251]
[1724459178957,3.62166,2761.2,2760.5,4.17251]
[1724459178958,3.62188,2761.0,2760.5,0.55]
[1724459179358,3.62213,2760.9,2760.5,0.55]
[1724459179575,3.62213,2760.9,2760.3,0.55]
[1724459179760,3.62213,2760.9,2760.2,2.4756]
[1724459179761,3.62214,2760.8,2760.2,2.4756]
[1724459181305,3.62243,2760.6,2760.2,2.4756]
[1724459181985,3.62214,2760.8,2760.2,2.4756]
[1724459181986,7.24438,2760.8,2760.2,2.4756]
[1724459182191,3.62214,2760.8,2760.2,2.4756]
[1724459182374,7.24438,2760.8,2760.2,6.09851]
[1724459182579,4.50194617,2760.8,2760.2,6.09851]
[1724459183464,8.12418617,2760.8,2760.2,6.09851]
[1724459183701,8.12416617,2760.8,2760.2,6.09851]
[1724459184366,4.50194617,2760.8,2760.2,6.09851]
[1724459184629,8.12416617,2760.8,2760.2,6.09851]
[1724459184864,4.50194617,2760.8,2760.2,6.09851]
[1724459186176,6.88204617,2760.8,2760.2,6.09851]
[1724459186508,7.63593768,2760.8,2760.2,6.09851]
[1724459186814,4.75318615,2761.0,2760.2,6.09851]
[1724459186815,0.75389151,2760.9,2760.3,3.62271]
[1724459187020,0.75389151,2760.9,2760.5,3.62251]
[1724459187721,0.75389151,2760.9,2760.5,2.2868]
[1724459187884,1.13126615,2761.1,2761.0,2.2868]
[1724459188077,0.75389151,2761.4,2761.0,2.2868]
[1724459188320,0.75389151,2761.4,2761.0,6.861726]
[1724459188518,0.75389151,2761.5,2761.0,6.861726]
[1724459188875,0.75389151,2761.5,2761.3,3.62146]
[1724459189191,1.13126615,2761.6,2761.2,3.62152]
[1724459189192,0.75389151,2761.6,2761.2,3.62152]
[1724459189399,0.75389151,2761.7,2761.3,3.62147]
[1724459189727,0.75389151,2761.8,2761.3,0.724299]
[1724459189929,0.75389151,2761.8,2761.5,2.2868]
[1724459190078,1.5098822,2762.0,2761.5,2.2868]
[1724459190079,0.75389151,2762.0,2761.6,3.62108]
[1724459190278,1.13126615,2762.2,2761.6,3.62108]
[1724459190279,0.75389151,2762.2,2761.6,3.62108]
[1724459190481,0.75389151,2762.2,2761.8,3.62081]
[1724459190929,0.75389151,2762.2,2761.9,3.62068]
[1724459191487,0.75389151,2762.2,2761.7,3.62088]
[1724459191698,0.75389151,2762.2,2761.8,0.55]
[1724459192208,0.75389151,2762.3,2761.8,0.55]
[1724459192409,0.75389151,2762.2,2761.8,0.55]
[1724459193321,0.75389151,2762.4,2761.8,4.17078]
[1724459194185,0.75389151,2762.5,2762.0,3.62055]
[1724459194528,0.75389151,2762.6,2762.0,5.90735]
[1724459194727,2.45257949,2762.7,2762.0,5.90735]
[1724459195193,6.07226949,2762.7,2762.0,5.90735]
[1724459195402,4.94100334,2762.7,2762.1,3.62041]
[1724459195589,6.06116051,2762.7,2762.0,5.90735]
[1724459196421,4.37370151,2762.6,2762.0,5.90735]
[1724459196626,4.37370151,2762.6,2762.0,2.2868]
[1724459201587,4.37370151,2762.6,2762.0,5.90728]
[1724459201827,4.37370151,2762.6,2762.1,3.62043]
[1724459202324,6.06119051,2762.7,2762.1,3.62043]
[1724459202885,4.70097967,2762.6,2762.0,2.2868]
[1724459203110,9.07475118,2762.6,2761.9,3.62058]
[1724459203314,3.61995,2762.5,2762.0,0.55]
[1724459203730,5.45487118,2762.6,2762.0,0.55]
[1724459203931,0.56744903,2762.4,2762.0,0.55]
[1724459204798,1.53167905,2762.4,2762.0,0.55]
[1724459207545,0.56744903,2762.4,2762.0,0.55]
[1724459208114,0.56744903,2762.4,2762.0,4.17054]
[1724459210352,4.18748903,2762.4,2762.0,0.55]
[1724459212843,0.56744903,2762.4,2762.0,0.55]
[1724459214932,0.56744903,2762.4,2762.1,2.4571]
[1724459217836,0.56744903,2762.4,2762.2,0.55]
[1724459218039,0.56744903,2762.4,2762.2,4.17019]
[1724459220298,0.56744903,2762.4,2762.2,0.55]
[1724459220887,0.56744903,2762.4,2762.2,4.17021]
[1724459221595,0.56744903,2762.4,2762.3,3.62017]
[1724459221752,1.13126615,2763.2,2762.6,3.6197]
[1724459221753,4.37290151,2763.2,2762.6,3.6197]
[1724459221935,2.3741,2763.3,2762.7,3.61955]
[1724459222140,0.56737633,2763.0,2762.8,3.6195]
[1724459222389,0.56737633,2763.0,2762.9,4.16938]
[1724459222832,0.56737633,2763.0,2762.9,0.55]
[1724459225632,4.37249151,2763.5,2762.9,0.55]
[1724459225831,0.84451445,2763.4,2762.9,0.55]
[1724459227353,0.84451445,2763.4,2762.8,3.61941]
[1724459227504,1.59840596,2763.4,2762.8,3.61941]
[1724459227932,4.37262151,2763.4,2762.8,3.61941]
[1724459228935,3.61873,2763.4,2762.8,3.61941]
[1724459229135,4.37262151,2763.4,2762.8,3.61941]
[1724459229716,0.75389151,2763.3,2762.8,3.61941]
[1724459231146,0.75389151,2763.2,2762.8,7.23885]
[1724459231354,0.75389151,2763.3,2762.8,4.343295]
[1724459231509,0.75389151,2763.3,2762.8,3.61941]
[1724459232118,0.75389151,2763.2,2762.8,3.61941]
[1724459232345,0.75389151,2763.2,2762.9,3.61935]
[1724459232958,0.75389151,2763.3,2762.9,5.97195]
[1724459233154,0.75389151,2763.2,2762.9,5.97195]
[1724459234434,1.13126615,2763.3,2762.9,5.97195]
[1724459234435,0.75389151,2763.1,2762.9,5.97195]
[1724459234739,0.75389151,2763.2,2762.9,5.97195]
[1724459235103,0.75389151,2763.1,2762.9,5.97195]
[1724459235311,0.75332755,2763.4,2763.3,3.61876]
[1724459235605,1.13126615,2763.5,2763.3,0.55]
[1724459235606,1.8845937,2763.5,2763.3,0.55]
[1724459235804,0.75332755,2763.5,2763.2,0.55]
[1724459236010,0.75332755,2763.5,2762.9,9.931066]
[1724459236339,0.75332755,2763.5,2762.8,3.6195]
[1724459236340,0.75332755,2763.3,2762.8,3.6195]
[1724459236653,0.75332755,2763.2,2762.8,3.6195]
[1724459240344,0.75332755,2763.2,2762.9,3.61937]
[1724459241474,0.75332755,2763.3,2762.9,3.61937]
[1724459242354,0.75332755,2763.2,2762.9,3.61937]
[1724459242555,0.75332755,2763.3,2762.9,3.61937]
[1724459244162,0.75332755,2763.3,2763.0,3.61922]
[1724459246259,0.75332755,2763.2,2763.0,3.61922]
[1724459246951,2.4751,2763.1,2762.3,0.77244926]
[1724459247162,0.75332755,2762.9,2761.8,2.4591]
[1724459247471,0.75332755,2762.5,2762.0,3.62048]
[1724459247778,4.37323755,2762.5,2761.8,9.70064]
[1724459248277,4.37323755,2762.5,2761.9,3.62067]
[1724459248447,5.68416014,2762.5,2762.0,3.62054]
[1724459248858,0.75332755,2762.4,2762.0,3.62054]
[1724459250087,0.75332755,2762.4,2762.1,3.62041]
[1724459250292,0.75332755,2762.5,2762.1,3.62041]
[1724459250785,0.75332755,2762.4,2762.0,3.62054]
[1724459250984,0.75332755,2762.5,2762.0,3.62054]
[1724459251392,0.75332755,2762.4,2762.0,3.62054]
[1724459257607,0.75332755,2762.3,2762.0,3.62054]
[1724459263786,0.75332755,2762.3,2762.0,7.24101]
[1724459264120,0.75332755,2762.3,2762.0,3.62047]
[1724459268086,0.75332755,2762.3,2762.0,7.24095]
[1724459269000,0.75332755,2762.4,2762.0,3.62047]
[1724459269222,0.75332755,2762.3,2762.0,3.62047]
[1724459270382,0.75332755,2762.4,2762.0,3.62047]
[1724459276430,1.45475614,2762.4,2761.8,7.24146]
[1724459276607,5.07479614,2762.4,2761.8,7.24144]
[1724459276809,3.62056,2762.0,2761.7,7.44]
[1724459277122,2.2847,2761.7,2761.1,3.62173]
[1724459277339,5.90566,2761.7,2761.1,3.62173]
[1724459277544,3.237349,2761.7,2760.9,6.08548]
[1724459277930,3.237349,2761.7,2761.1,3.62172]
[1724459278313,3.237349,2761.7,2761.2,3.62159]
[1724459279111,3.237349,2761.7,2761.1,3.62172]
[1724459279670,6.858369,2761.7,2760.8,4.38003906]
[1724459279808,3.62137,2761.4,2760.8,4.38003906]
[1724459280009,3.62124,2761.5,2760.8,4.38003906]
[1724459280208,2.2847,2761.5,2760.8,0.75790906]
[1724459280464,2.2847,2761.1,2760.8,0.75790906]
[1724459281075,3.62083,2761.8,2760.8,0.75790906]
[1724459281076,2.2847,2761.8,2760.9,2.4636]
[1724459281373,5.90514,2762.1,2761.5,3.6212]
[1724459281532,5.90514,2762.1,2761.3,3.62141]
[1724459281719,0.75332755,2761.8,2761.3,3.62141]
[1724459282727,0.75332755,2761.8,2761.2,3.6216]
[1724459283661,0.75332755,2761.8,2761.3,3.62147]
[1724459284177,2.2847,2761.7,2760.5,2.4636]
[1724459284379,2.2847,2761.3,2760.5,6.08609]
[1724459284530,3.62161,2761.2,2760.5,6.08609]
[1724459284724,3.62161,2761.2,2760.5,2.4636]
[1724459284925,3.62161,2761.2,2760.5,6.0861]
[1724459285358,3.62174,2761.1,2760.5,6.0861]
[1724459285536,3.62174,2761.1,2760.5,3.6225]
[1724459286993,0.56770694,2761.0,2760.5,3.6225]
[1724459287574,1.06198439,2761.0,2760.5,3.6225]
[1724459287887,2.2847,2760.8,2760.1,3.62295]
[1724459288253,3.62236,2760.7,2760.1,3.62295]
[1724459292055,2.2847,2760.8,2760.1,3.62295]
[1724459292252,0.590673,2760.7,2760.1,3.62295]
[1724459292857,4.213023,2760.7,2760.1,3.62295]
[1724459294293,7.835403,2760.7,2760.1,3.62295]
[1724459294483,4.213023,2760.7,2760.1,3.62295]
[1724459295983,3.62243,2760.6,2760.0,2.4636]
[1724459296393,4.6344453,2760.6,2760.0,2.4636]
[1724459296593,4.6344453,2760.6,2760.0,6.08677]
[1724459296904,3.62243,2760.6,2760.0,6.08677]
[1724459297894,3.62243,2760.6,2760.0,2.4636]
[1724459298295,3.62254,2760.5,2760.0,2.4636]
[1724459303402,7.24518,2760.5,2760.0,2.4636]
[1724459304036,7.24516,2760.5,2760.0,2.4636]
[1724459304241,0.724516,2760.5,2759.7,3.62353]
[1724459304442,3.62317,2760.1,2759.6,2.3886]
[1724459304575,3.62322,2760.0,2759.6,2.3886]
[1724459306618,3.62298,2760.2,2759.6,6.0123]
[1724459306817,7.24599,2760.2,2759.6,6.0123]
[1724459307032,3.62324,2760.0,2759.3,2.3886]
[1724459307198,3.62353,2759.8,2759.3,2.3886]
[1724459307379,3.62353,2759.8,2759.1,3.62424]
[1724459307380,3.62366,2759.7,2759.1,3.62424]
[1724459307780,3.62374,2759.6,2759.1,3.62424]
[1724459308246,3.62403,2759.4,2758.8,0.131112]
[1724459308519,3.6243,2759.2,2758.8,0.131112]
[1724459308852,3.6245,2759.0,2758.8,0.131112]
[1724459309536,5.9063,2759.2,2758.8,0.131112]
[1724459309899,3.6243,2759.2,2758.8,0.131112]
[1724459310932,3.03532755,2759.8,2758.9,2.46109281]
[1724459311094,3.62375,2759.6,2758.9,2.3886]
[1724459311296,3.62406,2759.4,2758.8,0.131112]
[1724459311501,3.62451,2759.0,2758.8,0.131112]
[1724459311693,9.893711,2758.9,2758.8,0.131112]
[1724459312815,6.269081,2758.9,2758.8,0.131112]
[1724459313018,3.6244,2759.1,2758.8,0.131112]
[1724459313219,5.90566,2759.7,2759.0,3.62447]
[1724459313521,4.49119759,2759.8,2759.0,3.62447]
[1724459313522,4.49119759,2759.8,2759.0,3.62441]
[1724459314110,3.62359,2759.7,2759.1,3.62435]
[1724459314294,3.62359,2759.7,2759.0,7.24878]
[1724459314497,3.62359,2759.7,2759.0,7.24877]
[1724459314717,4.49119759,2759.8,2759.0,3.62437]
[1724459314883,3.6238,2759.6,2759.0,3.62437]
[1724459315236,3.62394,2759.5,2758.8,3.755822]
[1724459315386,3.62394,2759.5,2758.9,0.55]
[1724459315737,0.44911976,2759.7,2758.8,3.755822]
[1724459315738,3.62435,2759.2,2758.8,0.131112]
[1724459315902,5.90607,2759.4,2758.8,0.131112]
[1724459315903,3.62463,2758.9,2758.8,0.131112]
[1724459316101,7.24926,2758.9,2758.8,0.131112]
[1724459316318,3.62463,2758.9,2758.8,0.131112]
[1724459316928,5.90607,2759.4,2758.8,0.131112]
[1724459316929,3.62448,2759.1,2758.8,0.131112]
[1724459317159,3.62427,2759.2,2758.8,0.131112]
[1724459317325,3.0,2759.5,2758.8,0.131112]
[1724459317326,3.62386,2759.5,2758.8,3.755872]
[1724459319523,3.62371,2759.6,2758.9,3.62462]
[1724459319923,8.97783,2759.8,2759.0,3.62444]
[1724459320197,8.97783,2759.8,2759.1,3.62434]
[1724459320198,3.62346,2759.8,2759.1,3.62434]
[1724459320409,3.62346,2759.8,2759.1,0.724878]
[1724459321091,3.62336,2759.9,2759.2,2.4656]
[1724459321290,3.62336,2759.9,2759.2,6.08974]
[1724459321491,3.62346,2759.8,2759.2,6.08974]
[1724459322123,3.62346,2759.8,2759.2,2.4656]
[1724459322639,3.62336,2759.9,2759.2,6.08983]
[1724459322929,3.62336,2759.9,2759.3,3.62407]
[1724459323435,3.62336,2759.9,2759.2,3.5095148]
[1724459323436,3.62346,2759.8,2759.2,3.5095148]
[1724459323601,3.62358,2759.7,2759.1,3.62428]
[1724459323953,3.62358,2759.7,2759.2,0.55]
[1724459325378,3.62336,2759.9,2759.2,4.17421]
[1724459325674,3.62354,2759.8,2759.2,5.335631]
[1724459326674,3.62359,2759.7,2759.2,1.711421]
[1724459326875,3.62359,2759.7,2759.2,0.55]
[1724459327170,3.62359,2759.7,2759.1,0.55]
[1724459328664,3.62359,2759.7,2759.1,4.17427]
[1724459328894,7.24678,2759.9,2759.2,3.62418]
[1724459329601,3.62349,2759.8,2759.2,3.62411]
[1724459330981,3.62373,2759.6,2759.0,11.06443]
[1724459331300,3.62385,2759.5,2759.0,11.06443]
[1724459331517,3.62359,2759.7,2759.1,3.62433]
[1724459332703,4.37679755,2759.8,2759.2,3.62421]
[1724459332891,4.53661337,2759.8,2759.2,3.62421]
[1724459333322,3.62358,2759.7,2759.0,11.06443]
[1724459333628,4.37690755,2759.7,2759.0,11.06443]
[1724459333841,3.62375,2759.6,2759.0,11.06443]
[1724459334183,3.62375,2759.6,2759.0,14.68885]
[1724459334386,4.37690755,2759.7,2759.0,14.68885]
[1724459334604,5.53236448,2759.7,2759.0,14.68885]
[1724459335042,4.37690755,2759.7,2759.0,14.68885]
[1724459335384,3.62399,2759.4,2758.8,0.131112]
[1724459335611,0.75332755,2759.1,2758.8,0.131112]
[1724459335820,4.75557615,2759.2,2758.8,0.131112]
[1724459335821,0.75332755,2759.2,2758.8,0.131112]
[1724459336051,4.92844692,2759.2,2758.8,0.131112]
[1724459336349,0.75332755,2759.1,2758.8,0.131112]
[1724459336939,4.37769755,2759.1,2758.8,0.131112]
[1724459338835,3.62428,2759.2,2758.9,2.2529]
[1724459339406,0.75332755,2759.3,2758.9,2.2529]
[1724459339660,4.37736755,2759.4,2758.9,2.2529]
[1724459340152,0.75332755,2759.3,2758.9,2.2529]
[1724459340296,4.37765755,2759.2,2758.8,0.131112]
[1724459340643,7.24866,2759.2,2758.8,0.131112]
[1724459340829,4.37765755,2759.2,2758.8,0.131112]
[1724459341007,3.62433,2759.2,2758.8,0.131112]
[1724459341215,4.37765755,2759.2,2758.8,0.131112]
[1724459342029,0.75332755,2759.2,2758.8,0.131112]
[1724459342233,0.75332755,2759.2,2758.8,3.755822]
[1724459342405,0.75332755,2759.3,2759.0,3.62441]
[1724459342829,4.37718755,2759.5,2759.0,3.62441]
[1724459342979,3.62402,2759.4,2758.9,2.8029]
[1724459343241,4.37734755,2759.4,2758.9,2.8029]
[1724459343600,4.37734755,2759.4,2758.9,6.42751]
[1724459344031,4.37734755,2759.4,2758.9,2.8029]
[1724459344481,4.37734755,2759.4,2758.9,6.42753]
[1724459344688,0.75332755,2759.4,2758.9,7.4458632]
[1724459344866,0.75332755,2759.5,2759.0,3.62448]
[1724459345263,0.75332755,2759.4,2759.0,7.24889]
[1724459345441,4.75504615,2759.6,2759.1,4.17426]
[1724459345442,0.75332755,2759.6,2759.1,4.17426]
[1724459345673,4.75493615,2759.7,2759.1,5.33625032]
[1724459345674,0.75332755,2759.5,2759.1,5.33625032]
[1724459346341,0.75332755,2759.5,2759.2,3.62419]
[1724459346677,0.75332755,2759.4,2759.2,3.62419]
[1724459346978,0.75332755,2759.5,2759.2,3.62419]
[1724459347194,0.75332755,2759.4,2759.2,3.62419]
[1724459347941,0.75332755,2759.6,2759.3,2.2529]
[1724459348551,0.75332755,2759.6,2759.3,5.87698]
[1724459349172,1.13126615,2759.7,2759.3,5.87698]
[1724459349173,0.75332755,2759.5,2759.3,5.87698]
[1724459349353,0.75332755,2759.5,2759.4,3.62397]
[1724459349682,0.75332755,2759.6,2759.4,4.6636709]
[1724459350050,0.75332755,2759.7,2759.4,4.6636709]
[1724459350288,0.75332755,2759.7,2759.5,3.62384]
[1724459351166,0.75332755,2759.6,2759.5,3.62384]
[1724459351680,0.75332755,2759.6,2759.4,1.0397009]
[1724459352022,0.75332755,2759.6,2759.4,4.66260067]
[1724459352141,0.75332755,2759.5,2759.4,4.66260067]
[1724459352340,0.75332755,2759.5,2759.4,5.21260067]
[1724459352540,0.75332755,2759.5,2759.4,4.17392]
[1724459352989,0.75332755,2759.6,2759.4,4.17392]
[1724459353347,0.75332755,2759.6,2759.5,10.05058]
[1724459353687,2.25571716,2760.3,2759.5,10.05058]
[1724459353688,0.75332755,2760.2,2760.1,3.62305]
[1724459353843,1.13126615,2760.4,2760.1,4.17305]
[1724459353844,0.75332755,2760.3,2760.1,4.17305]
[1724459354043,1.13126615,2760.4,2760.2,2.2529]
[1724459354385,0.752552,2760.3,2760.2,2.2529]
[1724459356064,0.752552,2760.4,2760.2,2.2529]
[1724459356246,0.752552,2760.3,2760.2,2.2529]
[1724459356450,0.752552,2760.4,2760.2,2.2529]
[1724459357825,0.752552,2760.4,2760.2,5.87572]
[1724459357987,0.752552,2760.6,2760.4,3.62266]
[1724459358308,1.13126615,2760.7,2760.4,3.62266]
[1724459358309,0.752552,2760.7,2760.5,3.62243]
[1724459358454,0.752552,2760.8,2760.5,4.17243]
[1724459358962,0.752552,2760.7,2760.5,0.55]
[1724459359183,0.752552,2760.8,2760.5,0.55]
[1724459359344,1.88381815,2760.9,2760.5,0.55]
[1724459359545,0.752552,2760.8,2760.5,0.55]
[1724459359803,0.752552,2760.8,2760.5,4.17252]
[1724459360252,0.752552,2760.9,2760.5,4.17252]
[1724459360997,0.752552,2760.9,2760.6,3.62231]
[1724459361164,0.752552,2761.0,2760.6,3.6223]
[1724459361572,0.752552,2761.0,2760.7,2.4259]
[1724459362030,0.752552,2761.2,2760.8,3.62203]
[1724459362191,0.752552,2761.2,2760.7,2.49833841]
[1724459362192,0.752552,2761.2,2761.0,7.2437]
[1724459362377,0.752552,2761.4,2761.0,3.62178]
[1724459362998,0.752552,2761.3,2761.0,3.62178]
[1724459363199,0.752552,2761.4,2761.0,3.62178]
[1724459363377,1.45404503,2761.4,2761.0,3.62178]
[1724459364523,0.70149303,2761.4,2761.0,3.62178]
[1724459364682,1.45404503,2761.4,2760.8,7.2441]
[1724459364883,1.45404503,2761.4,2760.9,4.17199]
[1724459365181,0.70149303,2761.4,2760.9,4.17199]
[1724459366420,4.1290475,2761.3,2760.7,9.8659]
[1724459366592,4.1290475,2761.3,2760.8,0.55]
[1724459366801,3.62184,2761.1,2760.7,7.44]
[1724459367004,0.362184,2761.0,2760.7,7.44]
[1724459367309,3.62195,2761.0,2760.7,7.44]
[1724459369093,3.62171,2761.2,2760.7,7.44]
[1724459369896,3.6219,2761.0,2760.7,7.44]
[1724459370524,3.62171,2761.2,2760.7,7.44]
[1724459372725,3.62171,2761.2,2760.6,3.6223]
[1724459372928,0.41292375,2761.1,2760.7,3.62225]
[1724459375418,0.5075275,2761.3,2760.4,14.8859]
[1724459375623,4.373692,2761.6,2761.0,3.6218]
[1724459375846,4.373692,2761.6,2761.1,3.62174]
[1724459376028,0.752552,2761.7,2761.3,3.62139]
[1724459376204,0.752552,2761.7,2761.3,3.62138]
[1724459376403,6.696472,2762.0,2761.3,3.62138]
[1724459376610,0.78277382,2761.9,2760.9,2.4945]
[1724459376808,4.40347382,2761.9,2761.3,3.62139]
[1724459377335,3.62083,2761.8,2761.3,3.62139]
[1724459378628,3.62083,2761.8,2761.1,3.62164]
[1724459378848,3.62083,2761.8,2761.2,3.62159]
[1724459379047,0.44036038,2761.7,2761.2,7.2431]
[1724459379346,3.62153,2761.3,2760.6,13.55687]
[1724459379501,3.62183,2761.1,2760.5,3.0]
[1724459379705,7.24368,2761.1,2760.5,3.0]
[1724459379900,3.62183,2761.1,2760.5,3.0]
[1724459380106,0.362183,2761.0,2760.5,3.62253]
[1724459381145,2.685483,2761.0,2760.4,7.24515]
[1724459381443,2.685483,2761.0,2760.5,0.55]
[1724459381746,2.685483,2761.0,2760.5,4.17252]
[1724459381945,2.685483,2761.0,2760.3,2.4945]
[1724459381946,3.62212,2760.9,2760.3,2.4945]
[1724459382117,3.62212,2760.9,2760.0,3.62317]
[1724459382118,3.62234,2760.7,2760.1,6.62305]
[1724459382508,3.62234,2760.7,2760.0,3.6231]
[1724459382760,3.62234,2760.7,2760.0,3.62308]
[1724459382909,2.685534,2760.6,2760.0,3.62308]
[1724459383108,2.685534,2760.6,2759.8,3.62335]
[1724459383343,3.62255,2760.5,2759.8,3.62335]
[1724459383644,3.62255,2760.5,2759.9,3.62322]
[1724459384538,3.62255,2760.5,2760.0,3.62318]
[1724459384744,0.9930374,2760.5,2760.0,3.62318]
[1724459387648,2.3233,2760.6,2760.0,3.6231]
[1724459387827,3.62229,2760.7,2760.0,6.1176]
[1724459388429,3.6226,2760.5,2759.9,3.62325]
[1724459388624,3.62272,2760.4,2759.6,3.0]
[1724459388852,3.075852,2760.6,2759.9,3.62324]
[1724459388853,0.362272,2760.3,2759.9,3.62324]
[1724459389053,3.62254,2760.5,2759.9,3.62324]
[1724459389479,3.62245,2760.6,2760.0,3.62307]
[1724459389654,0.752552,2760.7,2760.2,3.62283]
[1724459389841,4.374712,2760.8,2760.2,3.62283]
[1724459390157,4.374712,2760.8,2760.3,3.62277]
[1724459390158,0.752552,2760.8,2760.3,3.62277]
[1724459390345,0.752552,2760.7,2760.3,7.24547]
[1724459390513,0.752552,2760.7,2760.3,3.6227]
[1724459390920,1.92450665,2760.8,2760.3,3.6227]
[1724459391345,0.752552,2760.7,2760.3,7.2454]
[1724459391533,0.752552,2760.7,2760.3,3.6227]
[1724459392229,0.752552,2760.7,2760.2,6.11741]
[1724459392869,0.752552,2760.6,2760.2,6.11741]
[1724459393158,0.752552,2760.7,2760.2,6.11741]
[1724459393354,4.75341615,2760.8,2760.2,6.11741]
[1724459393355,0.752552,2760.6,2760.2,6.11741]
[1724459393558,0.752552,2760.6,2760.4,3.62255]
[1724459393761,0.752552,2760.6,2760.3,3.62277]
[1724459393929,0.752552,2760.7,2760.3,3.62277]
[1724459394255,1.13126615,2760.8,2760.3,3.62277]
[1724459394256,0.752552,2760.6,2760.3,3.62277]
[1724459394656,0.752552,2760.6,2760.4,3.62266]
[1724459394956,0.752552,2760.7,2760.3,7.24549]
[1724459395121,0.752552,2760.7,2760.3,3.62272]
[1724459395924,0.752552,2760.6,2760.3,3.62272]
[1724459397433,0.752552,2760.5,2760.3,3.62272]
[1724459397859,0.752552,2760.6,2760.3,3.62272]
[1724459398248,0.752552,2760.5,2760.3,3.62272]
[1724459399968,0.752552,2760.4,2760.3,3.62272]
[1724459400183,0.752552,2760.4,2760.3,4.17272]
[1724459400356,1.13126615,2760.6,2760.3,4.17272]
[1724459400357,0.752552,2760.5,2760.3,4.17272]
[1724459401271,0.752552,2760.5,2760.3,4.1727]
[1724459401971,0.752552,2760.6,2760.3,4.1727]
[1724459402331,0.752552,2760.5,2760.3,4.1727]
[1724459403668,0.752552,2760.4,2760.3,4.1727]
[1724459403833,0.752552,2760.5,2760.3,4.1727]
[1724459404668,0.752552,2760.6,2760.3,4.1727]
[1724459404907,0.752552,2760.5,2760.3,4.1727]
[1724459405536,0.752552,2760.7,2760.6,3.6224]
[1724459405739,0.752552,2760.7,2760.6,5.9625]
[1724459407285,1.13126615,2760.7,2760.5,3.62253]
[1724459407464,1.5098822,2760.9,2760.5,3.62253]
[1724459407465,0.75359923,2760.6,2760.5,3.62253]
[1724459407635,0.75359923,2760.6,2760.5,4.17253]
[1724459407843,0.75359923,2760.7,2760.5,4.17253]
[1724459408366,0.75359923,2760.6,2760.5,4.17253]
[1724459409794,0.75359923,2760.7,2760.6,3.6224]
[1724459410323,1.13126615,2760.8,2760.6,4.1724]
[1724459410509,1.13126615,2760.7,2760.6,4.1724]
[1724459410653,1.13126615,2760.7,2760.5,3.62253]
[1724459410849,0.75374355,2760.6,2760.5,3.62253]
[1724459411048,0.75374355,2760.6,2760.5,4.17253]
[1724459416497,0.75374355,2760.8,2760.6,3.6224]
[1724459416861,0.75374355,2760.8,2760.7,3.62226]
[1724459417953,0.75374355,2760.9,2760.7,3.62226]
[1724459418285,0.75374355,2760.8,2760.7,3.62226]
[1724459418593,1.13126615,2760.9,2760.7,3.62226]
[1724459418767,1.13126615,2760.8,2760.7,3.62226]
[1724459420298,0.75412435,2760.8,2760.7,3.62226]
[1724459420486,0.75412435,2760.9,2760.7,3.62226]
[1724459421466,0.75412435,2760.9,2760.6,3.62239]
[1724459421467,0.75412435,2760.9,2760.8,3.62213]
[1724459422114,0.75421028,2760.9,2760.8,3.62213]
[1724459422817,0.75444377,2760.9,2760.8,3.62213]
[1724459423116,1.13126615,2760.9,2760.8,3.62213]
[1724459425520,1.13126615,2761.0,2760.9,7.244]
[1724459425717,1.5098822,2761.2,2760.9,3.622]
[1724459426018,1.1321821,2761.1,2761.0,3.62187]
[1724459426325,1.1321821,2761.1,2761.0,7.24374]
[1724459426622,1.1321821,2761.2,2761.1,7.24348]
[1724459428920,1.1321821,2761.2,2761.1,3.62174]
[1724459429621,1.1321821,2761.3,2761.1,3.62172]
[1724459431223,1.1321821,2761.3,2761.1,7.24338]
[1724459431411,1.1321821,2761.3,2761.1,3.62166]
[1724459431580,1.1321821,2761.2,2761.1,3.62166]
[1724459433314,1.1321821,2761.2,2761.0,3.62186]
[1724459433508,0.75436468,2761.1,2761.0,3.62186]
[1724459434292,0.75436468,2761.2,2761.1,3.62174]
[1724459436918,1.1321821,2761.2,2760.9,3.62192]
[1724459437104,0.75441072,2761.2,2761.0,3.62179]
[1724459437308,0.75441072,2761.1,2761.0,3.62179]
[1724459437632,1.69854148,2761.1,2760.7,3.62219]
[1724459437831,0.75428713,2760.9,2760.8,3.62213]
[1724459438045,0.75428713,2760.9,2760.7,3.62218]
[1724459439349,0.75428713,2760.9,2760.8,3.62213]
[1724459441096,1.1314307,2761.0,2760.8,3.62213]